{"text_format":"1","workbook":"xlsx","n_sheets":3,"sheets":["INICIO","INGRESOS","GASTOS"],"not_rendered":{"charts":0,"images":6,"macros":1,"external_links":0,"defined_names":0,"comments":2,"pivot_tables":0},"unopened":[],"bounds":{"document_bytes":16777216,"sheet_cells":100000,"rows_first":2000,"rows_last":500,"rows_between":2000,"halvings":0,"cell_chars":16384,"cell_head_chars":4096},"cells_cut":0,"cells_raw":0,"read":"whole","date_system":"1900"}

{"sheet":"INICIO","index":0,"n_rows":26,"n_cols":3,"rows_kept":26,"cut":false,"hidden":false,"merged":[[1,1,1,2],[12,1,12,4],[13,2,13,3],[3,1,3,5],[25,1,26,5]]}
[]
[]
[]
[null,"COLOCA AQUÍ EL NOMBRE DE TU NEGOCIO"]
[null,"CONTROL DE INGRESOS Y GASTOS"]
[null,"MONEDA:"]
[]
[]
[]
[]
[]
[]
[null,"DIFERENCIA ENTRE INGRESOS Y GASTOS"]
[null,{"$f":"IF(C6=\"\",\"\",C6)","v":""},{"$f":"INGRESOS!G13-GASTOS!G13","v":0}]
[]
[]
[]
[]
[]
[]
[]
[]
[]
[]
[null,{"$f":"\"AMOSdelosNÚMEROS.com   Derechos reservados \"&YEAR(TODAY())","v":"AMOSdelosNÚMEROS.com   Derechos reservados 2024"}]
[null,"Este formato está realizado por AMOSdelosNÚMEROS y SergioQA.  Se prohibe la comercialización de nuestros materiales sin el concentimiento de sus autores. Para mas informacion visita www.amosdelosnumeros.com"]

{"sheet":"INGRESOS","index":1,"n_rows":27,"n_cols":9,"rows_kept":27,"cut":false,"hidden":false,"merged":[[3,1,3,3],[26,1,27,3]]}
["Este formato esta realizado por AMOSdelosNUMEROS y SergioQA.  Se prohibe la comercializacion de nuestros materiales sin el concentimiento de sus autores. Para mas informacion visita www.amosdelosnumeros.com"]
[]
["Este formato está realizado por AMOSdelosNÚMEROS y SergioQA.  Se prohibe la comercialización de nuestros materiales sin el concentimiento de sus autores. Para mas informacion visita www.amosdelosnumeros.com"]
[null,{"$f":"IF(INICIO!B4=\"COLOCA AQUÍ EL NOMBRE DE TU NEGOCIO\",\"\",INICIO!B4)","v":""}]
[null,"CONTROL DE INGRESOS",null,null,{"$f":"IF(INICIO!C6=\"\",\"\",INICIO!C6)","v":""},null,{"$f":"IF(INICIO!C6=\"\",\"\",INICIO!C6)","v":""}]
[]
[null,"FECHA DE LA VENTA","TIPO DE TRABAJO","DESCRIPCIÓN","PRECIO UNITARIO","CANTIDAD","MONTO TOTAL","FECHA DEL INGRESO","DÍAS DE COBRO"]
[null,null,null,null,null,null,{"$f":"Tabla_Ingresos[[#This Row],[PRECIO UNITARIO]]*Tabla_Ingresos[[#This Row],[CANTIDAD]]","v":0},null,{"$f":"IF(OR(Tabla_Ingresos[[#This Row],[FECHA DE LA VENTA]]=\"\",Tabla_Ingresos[[#This Row],[FECHA DEL INGRESO]]=\"\"),\"--\",IF(AND(Tabla_Ingresos[[#This Row],[FECHA DE LA VENTA]]<>\"\",Tabla_Ingresos[[#This Row],[FECHA DEL INGRESO]]=\"\"),TODAY()-Tabla_Ingresos[[#This Row],[FECHA DE LA VENTA]],IF(Tabla_Ingresos[[#This Row],[FECHA DEL INGRESO]]-Tabla_Ingresos[[#This Row],[FECHA DE LA VENTA]]<0,\"\",Tabla_Ingresos[[#This Row],[FECHA DEL INGRESO]]-Tabla_Ingresos[[#This Row],[FECHA DE LA VENTA]])))","v":"--"}]
[null,null,null,null,null,null,{"$f":"Tabla_Ingresos[[#This Row],[PRECIO UNITARIO]]*Tabla_Ingresos[[#This Row],[CANTIDAD]]","v":0},null,{"$f":"IF(OR(Tabla_Ingresos[[#This Row],[FECHA DE LA VENTA]]=\"\",Tabla_Ingresos[[#This Row],[FECHA DEL INGRESO]]=\"\"),\"--\",IF(AND(Tabla_Ingresos[[#This Row],[FECHA DE LA VENTA]]<>\"\",Tabla_Ingresos[[#This Row],[FECHA DEL INGRESO]]=\"\"),TODAY()-Tabla_Ingresos[[#This Row],[FECHA DE LA VENTA]],IF(Tabla_Ingresos[[#This Row],[FECHA DEL INGRESO]]-Tabla_Ingresos[[#This Row],[FECHA DE LA VENTA]]<0,\"\",Tabla_Ingresos[[#This Row],[FECHA DEL INGRESO]]-Tabla_Ingresos[[#This Row],[FECHA DE LA VENTA]])))","v":"--"}]
[null,null,null,null,null,null,{"$f":"Tabla_Ingresos[[#This Row],[PRECIO UNITARIO]]*Tabla_Ingresos[[#This Row],[CANTIDAD]]","v":0},null,{"$f":"IF(OR(Tabla_Ingresos[[#This Row],[FECHA DE LA VENTA]]=\"\",Tabla_Ingresos[[#This Row],[FECHA DEL INGRESO]]=\"\"),\"--\",IF(AND(Tabla_Ingresos[[#This Row],[FECHA DE LA VENTA]]<>\"\",Tabla_Ingresos[[#This Row],[FECHA DEL INGRESO]]=\"\"),TODAY()-Tabla_Ingresos[[#This Row],[FECHA DE LA VENTA]],IF(Tabla_Ingresos[[#This Row],[FECHA DEL INGRESO]]-Tabla_Ingresos[[#This Row],[FECHA DE LA VENTA]]<0,\"\",Tabla_Ingresos[[#This Row],[FECHA DEL INGRESO]]-Tabla_Ingresos[[#This Row],[FECHA DE LA VENTA]])))","v":"--"}]
[null,null,null,null,null,null,{"$f":"Tabla_Ingresos[[#This Row],[PRECIO UNITARIO]]*Tabla_Ingresos[[#This Row],[CANTIDAD]]","v":0},null,{"$f":"IF(OR(Tabla_Ingresos[[#This Row],[FECHA DE LA VENTA]]=\"\",Tabla_Ingresos[[#This Row],[FECHA DEL INGRESO]]=\"\"),\"--\",IF(AND(Tabla_Ingresos[[#This Row],[FECHA DE LA VENTA]]<>\"\",Tabla_Ingresos[[#This Row],[FECHA DEL INGRESO]]=\"\"),TODAY()-Tabla_Ingresos[[#This Row],[FECHA DE LA VENTA]],IF(Tabla_Ingresos[[#This Row],[FECHA DEL INGRESO]]-Tabla_Ingresos[[#This Row],[FECHA DE LA VENTA]]<0,\"\",Tabla_Ingresos[[#This Row],[FECHA DEL INGRESO]]-Tabla_Ingresos[[#This Row],[FECHA DE LA VENTA]])))","v":"--"}]
[null,null,null,null,null,null,{"$f":"Tabla_Ingresos[[#This Row],[PRECIO UNITARIO]]*Tabla_Ingresos[[#This Row],[CANTIDAD]]","v":0},null,{"$f":"IF(OR(Tabla_Ingresos[[#This Row],[FECHA DE LA VENTA]]=\"\",Tabla_Ingresos[[#This Row],[FECHA DEL INGRESO]]=\"\"),\"--\",IF(AND(Tabla_Ingresos[[#This Row],[FECHA DE LA VENTA]]<>\"\",Tabla_Ingresos[[#This Row],[FECHA DEL INGRESO]]=\"\"),TODAY()-Tabla_Ingresos[[#This Row],[FECHA DE LA VENTA]],IF(Tabla_Ingresos[[#This Row],[FECHA DEL INGRESO]]-Tabla_Ingresos[[#This Row],[FECHA DE LA VENTA]]<0,\"\",Tabla_Ingresos[[#This Row],[FECHA DEL INGRESO]]-Tabla_Ingresos[[#This Row],[FECHA DE LA VENTA]])))","v":"--"}]
[null,"Total Filas :",{"$f":"SUBTOTAL(103,Tabla_Ingresos[TIPO DE TRABAJO])","v":0},null,null,{"$f":"SUBTOTAL(109,Tabla_Ingresos[CANTIDAD])","v":0},{"$f":"SUBTOTAL(109,Tabla_Ingresos[MONTO TOTAL])","v":0},null,{"$f":"IFERROR(SUBTOTAL(101,Tabla_Ingresos[DÍAS DE COBRO]),\"--\")","v":"--"}]
[]
[]
[null,"Observaciones:"]
[]
[]
[]
[]
[]
[]
[]
[]
[]
[null,{"$f":"\"AMOSdelosNÚMEROS.com   Derechos reservados \"&YEAR(TODAY())","v":"AMOSdelosNÚMEROS.com   Derechos reservados 2024"}]
[null,"Este formato está realizado por AMOSdelosNÚMEROS y SergioQA.  Se prohibe la comercialización de nuestros materiales sin el concentimiento de sus autores. Para mas informacion visita www.amosdelosnumeros.com"]

{"sheet":"GASTOS","index":2,"n_rows":27,"n_cols":9,"rows_kept":27,"cut":false,"hidden":false,"merged":[[3,1,3,3],[26,1,27,3]]}
["Este formato esta realizado por AMOSdelosNUMEROS y SergioQA.  Se prohibe la comercializacion de nuestros materiales sin el concentimiento de sus autores. Para mas informacion visita www.amosdelosnumeros.com"]
[]
[]
[null,{"$f":"IF(INICIO!B4=\"COLOCA AQUÍ EL NOMBRE DE TU NEGOCIO\",\"\",INICIO!B4)","v":""}]
[null,"CONTROL DE GASTOS",null,null,{"$f":"IF(INICIO!C6=\"\",\"\",INICIO!C6)","v":""},null,{"$f":"IF(INICIO!C6=\"\",\"\",INICIO!C6)","v":""}]
[]
[null,"FECHA DE LA COMPRA","TIPO DE TRABAJO","DESCRIPCIÓN","PRECIO UNITARIO","CANTIDAD","MONTO TOTAL","FECHA DE PAGO","DÍAS DE PAGO"]
[null,null,null,null,null,null,{"$f":"Tabla_Gastos[[#This Row],[PRECIO UNITARIO]]*Tabla_Gastos[[#This Row],[CANTIDAD]]","v":0},null,{"$f":"IF(OR(Tabla_Gastos[[#This Row],[FECHA DE LA COMPRA]]=\"\",Tabla_Gastos[[#This Row],[FECHA DE PAGO]]=\"\"),\"--\",IF(AND(Tabla_Gastos[[#This Row],[FECHA DE LA COMPRA]]<>\"\",Tabla_Gastos[[#This Row],[FECHA DE PAGO]]=\"\"),TODAY()-Tabla_Gastos[[#This Row],[FECHA DE LA COMPRA]],IF(Tabla_Gastos[[#This Row],[FECHA DE PAGO]]-Tabla_Gastos[[#This Row],[FECHA DE LA COMPRA]]<0,\"\",Tabla_Gastos[[#This Row],[FECHA DE PAGO]]-Tabla_Gastos[[#This Row],[FECHA DE LA COMPRA]])))","v":"--"}]
[null,null,null,null,null,null,{"$f":"Tabla_Gastos[[#This Row],[PRECIO UNITARIO]]*Tabla_Gastos[[#This Row],[CANTIDAD]]","v":0},null,{"$f":"IF(OR(Tabla_Gastos[[#This Row],[FECHA DE LA COMPRA]]=\"\",Tabla_Gastos[[#This Row],[FECHA DE PAGO]]=\"\"),\"--\",IF(AND(Tabla_Gastos[[#This Row],[FECHA DE LA COMPRA]]<>\"\",Tabla_Gastos[[#This Row],[FECHA DE PAGO]]=\"\"),TODAY()-Tabla_Gastos[[#This Row],[FECHA DE LA COMPRA]],IF(Tabla_Gastos[[#This Row],[FECHA DE PAGO]]-Tabla_Gastos[[#This Row],[FECHA DE LA COMPRA]]<0,\"\",Tabla_Gastos[[#This Row],[FECHA DE PAGO]]-Tabla_Gastos[[#This Row],[FECHA DE LA COMPRA]])))","v":"--"}]
[null,null,null,null,null,null,{"$f":"Tabla_Gastos[[#This Row],[PRECIO UNITARIO]]*Tabla_Gastos[[#This Row],[CANTIDAD]]","v":0},null,{"$f":"IF(OR(Tabla_Gastos[[#This Row],[FECHA DE LA COMPRA]]=\"\",Tabla_Gastos[[#This Row],[FECHA DE PAGO]]=\"\"),\"--\",IF(AND(Tabla_Gastos[[#This Row],[FECHA DE LA COMPRA]]<>\"\",Tabla_Gastos[[#This Row],[FECHA DE PAGO]]=\"\"),TODAY()-Tabla_Gastos[[#This Row],[FECHA DE LA COMPRA]],IF(Tabla_Gastos[[#This Row],[FECHA DE PAGO]]-Tabla_Gastos[[#This Row],[FECHA DE LA COMPRA]]<0,\"\",Tabla_Gastos[[#This Row],[FECHA DE PAGO]]-Tabla_Gastos[[#This Row],[FECHA DE LA COMPRA]])))","v":"--"}]
[null,null,null,null,null,null,{"$f":"Tabla_Gastos[[#This Row],[PRECIO UNITARIO]]*Tabla_Gastos[[#This Row],[CANTIDAD]]","v":0},null,{"$f":"IF(OR(Tabla_Gastos[[#This Row],[FECHA DE LA COMPRA]]=\"\",Tabla_Gastos[[#This Row],[FECHA DE PAGO]]=\"\"),\"--\",IF(AND(Tabla_Gastos[[#This Row],[FECHA DE LA COMPRA]]<>\"\",Tabla_Gastos[[#This Row],[FECHA DE PAGO]]=\"\"),TODAY()-Tabla_Gastos[[#This Row],[FECHA DE LA COMPRA]],IF(Tabla_Gastos[[#This Row],[FECHA DE PAGO]]-Tabla_Gastos[[#This Row],[FECHA DE LA COMPRA]]<0,\"\",Tabla_Gastos[[#This Row],[FECHA DE PAGO]]-Tabla_Gastos[[#This Row],[FECHA DE LA COMPRA]])))","v":"--"}]
[null,null,null,null,null,null,{"$f":"Tabla_Gastos[[#This Row],[PRECIO UNITARIO]]*Tabla_Gastos[[#This Row],[CANTIDAD]]","v":0},null,{"$f":"IF(OR(Tabla_Gastos[[#This Row],[FECHA DE LA COMPRA]]=\"\",Tabla_Gastos[[#This Row],[FECHA DE PAGO]]=\"\"),\"--\",IF(AND(Tabla_Gastos[[#This Row],[FECHA DE LA COMPRA]]<>\"\",Tabla_Gastos[[#This Row],[FECHA DE PAGO]]=\"\"),TODAY()-Tabla_Gastos[[#This Row],[FECHA DE LA COMPRA]],IF(Tabla_Gastos[[#This Row],[FECHA DE PAGO]]-Tabla_Gastos[[#This Row],[FECHA DE LA COMPRA]]<0,\"\",Tabla_Gastos[[#This Row],[FECHA DE PAGO]]-Tabla_Gastos[[#This Row],[FECHA DE LA COMPRA]])))","v":"--"}]
[null,"Total Filas :",{"$f":"SUBTOTAL(103,Tabla_Gastos[TIPO DE TRABAJO])","v":0},null,null,{"$f":"SUBTOTAL(109,Tabla_Gastos[CANTIDAD])","v":0},{"$f":"SUBTOTAL(109,Tabla_Gastos[MONTO TOTAL])","v":0},null,{"$f":"IFERROR(SUBTOTAL(101,Tabla_Gastos[DÍAS DE PAGO]),\"--\")","v":"--"}]
[]
[]
[null,"Observaciones:"]
[]
[]
[]
[]
[]
[]
[]
[]
[]
[null,{"$f":"\"AMOSdelosNÚMEROS.com   Derechos reservados \"&YEAR(TODAY())","v":"AMOSdelosNÚMEROS.com   Derechos reservados 2024"}]
[null,"Este formato está realizado por AMOSdelosNÚMEROS y SergioQA.  Se prohibe la comercialización de nuestros materiales sin el concentimiento de sus autores. Para mas informacion visita www.amosdelosnumeros.com"]